[Event "42nd WALTON Women-ch Bangladesh 2024"]
[Site "Dhaka"]
[Date "2024.05.29"]
[Round "10.1"]
[White "Wadifa, Ahmed"]
[Black "Israt, Jahan Diba"]
[Result "0-1"]
[ECO "B76"]
[WhiteElo "1921"]
[BlackElo "1904"]
[Annotator "NA RC"]
[PlyCount "113"]
[EventDate "2024.05.20"]
[EventType "tourn"]
[EventCountry "BAN"]
[SourceTitle "playchess.com"]
[Source "ChessBase"]
[SourceQuality "1"]
[TimeControl "40/5400+30:1800+30"]

1. e4 {[%emt 0:00:10]} c5 {[%emt 0:01:17]} 2. Nf3 {[%emt 0:00:05]} d6 {[%emt 0:00:05]} 3. d4 {[%emt 0:00:06]} cxd4 {[%emt 0:00:04]} 4. Nxd4 {[%emt 0:00:07]} Nf6 {[%emt 0:00:05]} 5. Nc3 {[%emt 0:00:06]} g6 {[%emt 0:00:05]} 6. Be3 {[%emt 0:00:05]} Bg7 {[%emt 0:00:06]} 7. f3 {[%emt 0:00:06]} Nc6 {[%emt 0:00:05]} 8. Qd2 {[%emt 0:00:05]} O-O {[%emt 0:00:28]} 9. O-O-O {[%emt 0:00:05]} d5 {[%emt 0:00:05]} 10. exd5 {[%emt 0:00:06]} Nxd5 {[%emt 0:00:07]} 11. Nxc6 {[%emt 0:00:06]} bxc6 {[%emt 0:00:06]} 12. Bd4 {[%emt 0:00:04]} Bxd4 {[%emt 0:01:08]} 13. Qxd4 {[%emt 0:00:07]} Be6 {[%emt 0:01:18] B76: Sicilian Dragon: Yugoslav Attack, 9 g4 and 9 0-0-0.} 14. Qc5 {[%emt 0:10:56]} Qb6 {[%emt 0:03:05]} 15. Na4 {[%emt 0:05:18]} Qc7 {[%emt 0:02:51]} 16. b3 {[%emt 0:00:34]} Rfd8 {[%emt 0:12:51]} 17. Bc4 {[%emt 1:20:54]} Qe5 {[%emt 0:03:29]} 18. Rd4 {[%emt 0:00:00]} (18. Bxd5 $1 $11 Rxd5 (18... cxd5 19. Qd4 $11) 19. Qc3) 18... Qg5+ {[%emt 0:09:31]} 19. Rd2 {[%emt 0:00:00]} Rd6 {[%emt 0:05:35]} 20. Rhd1 {[%emt 0:00:00]} Qe5 {[%emt 0:11:32]} 21. c3 {[%emt 0:00:00]} Qxh2 {[%emt 0:03:27]} 22. Bxd5 {[%emt 0:00:00]} cxd5 {[%emt 0:02:53]} 23. Qe3 {[%emt 0:00:00]} Qg3 {[%emt 0:21:11]} 24. Kb2 {[%emt 0:00:00]} Rc6 {[%emt 0:05:04]} 25. Re2 {[%emt 0:00:00]} h5 {[%emt 0:03:43]} 26. Qd4 {[%emt 0:00:00]} ({White should try} 26. Rdd2 $1 $11) 26... a6 {[%emt 0:09:17]} (26... a5 $1 $15) 27. Nc5 {[%emt 0:03:23]} Rac8 {[%emt 0:01:25]} 28. Nxe6 {[%emt 0:00:07]} Rxe6 {[%emt 0:01:48]} 29. Rxe6 {[%emt 0:00:27]} fxe6 {[%emt 0:00:03]} 30. Rd2 {[%emt 0:00:07]} Rc6 {[%emt 0:01:08]} 31. Re2 {[%emt 0:00:43]} Rd6 {[%emt 0:01:13]} 32. Kc2 {[%emt 0:01:50]} Rc6 {[%emt 0:00:35]} 33. Kb2 {[%emt 0:00:08]} Rd6 {[%emt 0:00:41]} 34. Qa4 {[%emt 0:00:36]} Kf7 {[%emt 0:00:23]} 35. Qd4 {[%emt 0:00:06]} Kg8 {[%emt 0:00:29]} 36. Qa7 {[%emt 0:01:30]} Qg5 {[%emt 0:00:43]} 37. Qd4 {[%emt 0:00:21]} Qf6 {[%emt 0:00:22]} 38. Re5 {[%emt 0:00:23]} Rd8 {[%emt 0:00:29]} 39. Qe3 {[%emt 0:00:26]} Rd6 {[%emt 0:00:34]} 40. f4 {[%emt 0:00:31]} Kf7 {[%emt 0:00:33]} 41. Rg5 {[%emt 0:30:38]} d4 {[%emt 0:30:19]} 42. Qe5 {[%emt 0:00:00]} dxc3+ {[%emt 0:00:00]} 43. Kxc3 {[%emt 0:00:00]} Rd5 {[%emt 0:00:00]} 44. Qxf6+ {[%emt 0:00:00]} exf6 $19 {[%emt 0:00:00]} ({Weaker is} 44... Kxf6 45. b4 $11) 45. Rxd5 {[%emt 0:00:00]} exd5 {[%emt 0:00:00]} 46. b4 {[%emt 0:00:00]} Ke6 {[%emt 0:00:00]} 47. a4 {[%emt 0:00:00]} Kd6 {[%emt 0:00:00]} 48. Kd4 {[%emt 0:00:00]} g5 {[%emt 0:00:00]} 49. Ke3 {[%emt 0:00:00]} h4 {[%emt 0:00:00]} 50. Kf3 {[%emt 0:00:00]} d4 {[%emt 0:00:00]} 51. Ke4 {[%emt 0:00:32]} g4 {[%emt 0:00:00]} 52. b5 {[%emt 0:01:47]} axb5 {[%emt 0:00:00]} 53. a5 {[%emt 0:00:13]} h3 {[%emt 0:00:00]} 54. a6 {[%emt 0:00:04]} hxg2 {[%emt 0:00:00]} 55. a7 {[%emt 0:00:05]} g1=Q {[%emt 0:00:00]} 56. a8=Q {[%emt 0:00:07]} Qg2+ {[%emt 0:00:00]} 57. Kxd4 {[%emt 0:05:56]} 0-1

[Event "42nd WALTON Women-ch Bangladesh 2024"]
[Site "Dhaka"]
[Date "2024.05.29"]
[Round "10.2"]
[White "Nusrat Jahan, Alo"]
[Black "Ahmed, Walijah"]
[Result "0-1"]
[ECO "D00"]
[WhiteElo "1850"]
[BlackElo "1878"]
[Annotator "NA RC"]
[PlyCount "126"]
[EventDate "2024.05.20"]
[EventType "tourn"]
[EventCountry "BAN"]
[SourceTitle "playchess.com"]
[Source "ChessBase"]
[SourceQuality "1"]
[TimeControl "40/5400+30:1800+30"]

1. d4 {[%emt 0:00:04]} d5 {[%emt 0:00:13]} 2. Bf4 {[%emt 0:00:07]} c5 {[%emt 0:00:12]} 3. c3 {[%emt 0:00:07]} Nc6 {[%emt 0:00:17]} 4. e3 {[%emt 0:00:17]} Qb6 {[%emt 0:00:27]} 5. Qb3 {[%emt 0:01:01]} c4 {[%emt 0:00:32]} 6. Qxb6 {[%emt 0:00:09] D00: 1 d4 d5: Unusual lines.} axb6 {[%emt 0:00:04]} 7. Nd2 {[%emt 0:00:20]} b5 {[%emt 0:00:28]} 8. a3 {[%emt 0:02:49]} b4 {[%emt 0:01:43]} 9. cxb4 {[%emt 0:01:31]} Nxb4 {[%emt 0:00:49]} 10. Rc1 {[%emt 0:01:04]} Nc6 {[%emt 0:00:49]} 11. Ngf3 {[%emt 0:02:27]} e6 {[%emt 0:02:08]} 12. Be2 {[%emt 0:02:28]} Nf6 {[%emt 0:01:30]} 13. O-O {[%emt 0:02:49]} Be7 {[%emt 0:01:11]} 14. Nb1 {[%emt 0:09:14]} Ne4 {[%emt 0:02:31]} 15. Ne5 {[%emt 0:02:26]} ({White should play} 15. Rfd1 $15) 15... Bd7 {[%emt 0:07:09]} ({Black should try} 15... g5 $17 16. Nxc6 bxc6) 16. f3 {[%emt 0:11:10]} Nd6 {[%emt 0:02:32]} 17. Nc3 {[%emt 0:02:47]} Nxe5 {[%emt 0:05:59]} 18. Bxe5 {[%emt 0:03:41]} f6 {[%emt 0:05:39]} 19. Bxd6 {[%emt 0:13:14]} Bxd6 {[%emt 0:00:22]} 20. f4 {[%emt 0:00:26]} f5 {[%emt 0:19:50]} 21. Kf2 {[%emt 0:10:57]} Ke7 {[%emt 0:06:11]} 22. Ke1 {[%emt 0:04:35]} b5 {[%emt 0:02:22]} 23. Kd2 {[%emt 0:05:06]} Ra7 {[%emt 0:07:38]} (23... h5 $17 24. h4 g6) 24. Rb1 {[%emt 0:07:16]} Rb8 {[%emt 0:02:08]} 25. Ra1 {[%emt 0:03:24]} Rba8 {[%emt 0:01:03]} 26. Rab1 {[%emt 0:01:29]} Rb8 {[%emt 0:04:57]} 27. Ra1 $1 {[%emt 0:00:43]} Rba8 {[%emt 0:03:32]} 28. Rab1 {[%emt 0:00:12]} b4 {[%emt 0:00:39]} 29. axb4 {[%emt 0:00:04]} Bxb4 {[%emt 0:00:04]} 30. Rfc1 {[%emt 0:00:14]} Ra2 {[%emt 0:07:35]} 31. Bd1 {[%emt 0:00:46]} R8a3 {[%emt 0:01:53]} (31... Rb8 $19 32. h3 Ba5) 32. Rc2 {[%emt 0:03:00]} Ra7 {[%emt 0:06:25]} 33. Kc1 {[%emt 0:01:10]} Ra1 {[%emt 0:02:31]} 34. h3 {[%emt 0:01:29]} Be8 {[%emt 0:00:45]} 35. Rf2 {[%emt 0:02:25]} R1a6 {[%emt 0:01:09]} 36. Rc2 {[%emt 0:00:52]} Rb7 {[%emt 0:01:28]} 37. Rf2 {[%emt 0:02:05]} h6 {[%emt 0:00:22]} 38. g3 {[%emt 0:00:23]} Rba7 {[%emt 0:00:35]} 39. Rc2 {[%emt 0:00:16]} Rb6 {[%emt 0:01:11]} 40. Rf2 {[%emt 0:00:17]} Rba6 {[%emt 0:00:39]} 41. Rc2 {[%emt 0:30:16]} Rb7 {[%emt 0:06:01]} ({Black should play} 41... Kf6 $17 42. h4 h5) 42. Rf2 $1 {[%emt 0:00:00]} Kf6 {[%emt 0:03:04]} 43. Bc2 {[%emt 0:00:00]} Bh5 $17 {[%emt 0:05:56]} 44. Ne2 {[%emt 0:00:00]} Be1 {[%emt 0:05:37]} 45. Rf1 {[%emt 0:00:00]} Bxe2 {[%emt 0:01:34]} 46. Rxe1 {[%emt 0:00:00]} Bf3 {[%emt 0:00:03]} 47. Rg1 {[%emt 0:00:00]} h5 {[%emt 0:02:34]} 48. Kd2 {[%emt 0:00:00]} Rab6 {[%emt 0:01:07]} 49. Kc3 {[%emt 0:00:00]} Be4 {[%emt 0:00:39]} 50. Bxe4 {[%emt 0:01:06]} Rb3+ {[%emt 0:00:14]} 51. Kc2 {[%emt 0:00:10]} fxe4 {[%emt 0:00:20]} 52. Rge1 {[%emt 0:00:26]} g5 {[%emt 0:00:55]} 53. Re2 {[%emt 0:03:43]} gxf4 {[%emt 0:00:11]} 54. gxf4 {[%emt 0:00:08]} Rg7 {[%emt 0:00:22]} 55. h4 {[%emt 0:00:54]} Rg3 {[%emt 0:00:24]} 56. Rbe1 {[%emt 0:02:25]} Rh3 {[%emt 0:01:39]} 57. Kd1 {[%emt 0:00:36]} Rxh4 {[%emt 0:00:12]} 58. Rg1 {[%emt 0:00:36]} Rh3 {[%emt 0:00:25]} 59. Rg5 {[%emt 0:01:26]} Rhxe3 {[%emt 0:01:16]} 60. Rxh5 {[%emt 0:00:44]} Rxe2 {[%emt 0:00:15]} 61. Kxe2 {[%emt 0:00:05]} Rxb2+ {[%emt 0:00:07]} 62. Ke3 {[%emt 0:00:11]} Rb3+ {[%emt 0:00:05]} 63. Ke2 {[%emt 0:00:06]} Rd3 {[%emt 0:00:11]} 0-1

[Event "42nd WALTON Women-ch Bangladesh 2024"]
[Site "Dhaka"]
[Date "2024.05.29"]
[Round "10.3"]
[White "Jannatul, Ferdous"]
[Black "Noshin, Anjum"]
[Result "0-1"]
[ECO "D02"]
[WhiteElo "1990"]
[BlackElo "2025"]
[Annotator "NA RC"]
[PlyCount "110"]
[EventDate "2024.05.20"]
[EventType "tourn"]
[EventCountry "BAN"]
[SourceTitle "playchess.com"]
[Source "ChessBase"]
[SourceQuality "1"]
[TimeControl "40/5400+30:1800+30"]

1. d4 {[%emt 0:00:39]} d5 {[%emt 0:00:07]} 2. Bf4 {[%emt 0:00:08]} Nf6 {[%emt 0:00:19]} 3. e3 {[%emt 0:00:06]} e6 {[%emt 0:00:52]} 4. Nf3 {[%emt 0:00:30]} c5 {[%emt 0:00:59]} 5. c3 {[%emt 0:00:09]} Bd6 {[%emt 0:00:18]} 6. Bg3 {[%emt 0:00:17] D02: 1 d4 d5 2 Nf3 sidelines, including 2...Nf6 3 g3 and 2...Nf6 3 Bf4.} Qc7 {[%emt 0:01:21]} 7. Ne5 {[%emt 0:01:09]} Nbd7 {[%emt 0:01:06]} 8. f4 {[%emt 0:00:37]} O-O {[%emt 0:02:05]} 9. Bd3 {[%emt 0:00:55]} c4 {[%emt 0:01:20]} 10. Bc2 {[%emt 0:00:21]} b5 {[%emt 0:00:17]} 11. Nd2 {[%emt 0:01:19]} a5 {[%emt 0:04:26]} 12. Bh4 {[%emt 0:06:34]} Bb7 {[%emt 0:05:20]} 13. a3 {[%emt 0:25:24]} (13. a4 $11 {should be considered.}) 13... Ne4 $1 {[%emt 0:03:20]} 14. Bxe4 {[%emt 0:07:23]} dxe4 {[%emt 0:00:25]} 15. Nxd7 {[%emt 0:01:41]} Qxd7 {[%emt 0:00:08]} 16. O-O {[%emt 0:00:30]} Bd5 {[%emt 0:05:44]} 17. g4 {[%emt 0:18:43]} f6 {[%emt 0:18:54]} 18. Qc2 {[%emt 0:01:43]} ({White should try} 18. a4) 18... e5 {[%emt 0:11:24]} 19. f5 {[%emt 0:03:18]} exd4 {[%emt 0:04:40]} 20. cxd4 {[%emt 0:00:07]} Qc6 {[%emt 0:04:34]} 21. Rac1 {[%emt 0:04:26]} Rac8 {[%emt 0:04:02]} 22. Nb1 {[%emt 0:09:18]} b4 {[%emt 0:00:51]} 23. axb4 {[%emt 0:06:57]} axb4 {[%emt 0:00:06]} 24. Nd2 {[%emt 0:02:33]} (24. Qg2 {is a better defense.}) 24... c3 {[%emt 0:02:22]} 25. Nb1 {[%emt 0:03:48]} Bc4 {[%emt 0:09:54]} 26. Rfd1 $19 {[%emt 0:00:03]} Bd3 {[%emt 0:03:22]} 27. Qb3+ {[%emt 0:04:08] [#]} Qc4 $1 {[%emt 0:00:05]} 28. Qxc4+ {[%emt 0:00:28]} Rxc4 {[%emt 0:00:06]} 29. bxc3 {[%emt 0:00:18]} Rfc8 {[%emt 0:00:11]} 30. Be1 {[%emt 0:00:38]} Bxb1 $2 {[%emt 0:07:36]} (30... Be2 $19 {and Black stays clearly on top.} 31. Rd2 Bxg4) 31. Rxb1 {[%emt 0:00:16]} bxc3 {[%emt 0:00:22]} 32. Ra1 {[%emt 0:01:21]} (32. Rdc1 $15) 32... c2 {[%emt 0:06:09]} 33. Rdc1 {[%emt 0:00:02]} Bb4 {[%emt 0:00:07]} ({Better is} 33... h5 $17 34. gxh5 Kh7) 34. Bxb4 {[%emt 0:01:02]} Rxb4 {[%emt 0:00:05]} 35. Kf2 {[%emt 0:00:32]} Rc3 {[%emt 0:01:28]} 36. Ra2 {[%emt 0:00:17]} Rbc4 {[%emt 0:00:54]} 37. h4 {[%emt 0:00:42]} h6 {[%emt 0:00:28]} 38. Ra8+ {[%emt 0:00:32]} Kf7 {[%emt 0:00:43]} 39. Ra7+ {[%emt 0:00:11]} Kf8 {[%emt 0:00:37]} 40. Ra8+ {[%emt 0:00:02]} Ke7 {[%emt 0:00:14]} 41. Ra7+ {[%emt 0:31:15]} Kd6 {[%emt 0:16:54]} 42. Rxg7 {[%emt 0:00:00]} Rd3 {[%emt 0:00:30]} 43. Ke2 {[%emt 0:00:00]} Rcc3 {[%emt 0:00:09]} 44. Rf7 {[%emt 0:00:00]} Rxe3+ $19 {[%emt 0:00:08]} 45. Kd2 {[%emt 0:00:00]} Red3+ {[%emt 0:00:15]} 46. Ke1 {[%emt 0:00:00]} Rh3 {[%emt 0:03:03]} 47. Kd2 {[%emt 0:01:16]} Rhd3+ {[%emt 0:02:39]} 48. Ke1 {[%emt 0:00:16]} Rxd4 {[%emt 0:01:38]} 49. Rxf6+ {[%emt 0:00:25]} Ke5 {[%emt 0:00:05]} 50. Ra6 {[%emt 0:02:38]} Kf4 {[%emt 0:00:42]} 51. Ra2 {[%emt 0:00:27]} Re3+ {[%emt 0:00:22]} 52. Kf2 {[%emt 0:00:34]} Rd2+ {[%emt 0:00:06]} 53. Kf1 {[%emt 0:00:27]} Rd1+ {[%emt 0:00:09]} 54. Kf2 {[%emt 0:00:28]} Rxc1 {[%emt 0:00:12]} 55. f6 {[%emt 0:00:35]} Rf1+ {[%emt 0:00:22]} 0-1

[Event "42nd WALTON Women-ch Bangladesh 2024"]
[Site "Dhaka"]
[Date "2024.05.29"]
[Round "10.4"]
[White "Warsia, Khusbu"]
[Black "Sultana, Sharmin Shirin"]
[Result "1/2-1/2"]
[ECO "B41"]
[WhiteElo "1905"]
[BlackElo "1927"]
[Annotator "NA RC"]
[PlyCount "111"]
[EventDate "2024.05.20"]
[EventType "tourn"]
[EventCountry "BAN"]
[SourceTitle "playchess.com"]
[Source "ChessBase"]
[SourceQuality "1"]
[TimeControl "40/5400+30:1800+30"]

1. e4 {[%emt 0:06:59]} c5 {[%emt 0:01:03]} 2. Nf3 {[%emt 0:00:13]} e6 {[%emt 0:00:06]} 3. d4 {[%emt 0:00:05]} cxd4 {[%emt 0:00:04]} 4. Nxd4 {[%emt 0:00:06]} a6 {[%emt 0:00:04]} 5. c4 {[%emt 0:00:05]} Nf6 {[%emt 0:01:28]} 6. Nc3 {[%emt 0:00:08]} Qc7 {[%emt 0:00:08]} 7. Be2 {[%emt 0:00:15]} b6 {[%emt 0:03:00]} 8. O-O {[%emt 0:03:16]} Bb7 {[%emt 0:00:13]} 9. Qd3 {[%emt 0:00:25]} (9. f3 $14 {was preferrable.}) 9... Bb4 {[%emt 0:16:35]} (9... Nc6 $11) 10. f3 {[%emt 0:09:10] B41: Sicilian: Kan Variation: 5 c4.} O-O {[%emt 0:05:54]} 11. a3 {[%emt 0:01:22]} Be7 {[%emt 0:01:07]} 12. f4 {[%emt 0:01:30]} d6 {[%emt 0:01:19]} 13. b4 {[%emt 0:01:30]} Nbd7 {[%emt 0:08:26]} 14. Bb2 {[%emt 0:04:24]} Rfe8 {[%emt 0:04:07]} 15. Nc2 {[%emt 0:02:37]} Rad8 {[%emt 0:11:36]} 16. Qg3 {[%emt 0:06:59]} Bf8 {[%emt 0:05:48]} 17. Bd3 {[%emt 0:00:38]} g6 {[%emt 0:08:58]} 18. Rae1 {[%emt 0:04:19]} Bg7 {[%emt 0:00:54]} 19. Ba1 {[%emt 0:06:29]} Nb8 {[%emt 0:14:11]} (19... b5 $15 20. cxb5 Nh5) 20. Qh4 {[%emt 0:23:29]} Qe7 {[%emt 0:09:30]} 21. f5 {[%emt 0:00:58]} (21. Nb1 $14) 21... Nfd7 {[%emt 0:01:47]} 22. Qf4 {[%emt 0:07:04]} Be5 {[%emt 0:00:14]} 23. Qf2 {[%emt 0:00:26]} Rf8 {[%emt 0:02:52]} 24. Na4 {[%emt 0:01:53]} Qg5 {[%emt 0:00:25]} (24... Bxa1 $14 25. Nxa1 Ne5) 25. Bd4 {[%emt 0:05:22]} exf5 {[%emt 0:00:53]} (25... gxf5 $11 26. exf5 (26. Nxb6 Nf6 $15) 26... Nf6) 26. Be3 {[%emt 0:02:46]} (26. Nxb6 Qh6 27. h3 (27. exf5 $2 Qxh2#) 27... Bxd4 28. Qxd4 Nc6 $15) (26. exf5 $14 Bxd4 27. Nxd4) 26... f4 {[%emt 0:01:22]} ({Better is} 26... Qh5 $17 {[%csl Ge5][%cal Rh5h2]} 27. Bf4 fxe4 28. Bxe4 Bxe4 29. Rxe4 b5 30. cxb5 axb5 31. Bxe5 Nxe5) 27. Bxb6 {[%emt 0:00:44]} (27. Bxf4 $14 Qxf4 28. Qxf4 Bxf4 29. Rxf4) 27... Nxb6 {[%emt 0:01:00]} 28. Nxb6 {[%emt 0:00:01]} Nc6 {[%emt 0:00:44]} 29. Nd5 {[%emt 0:00:35]} Qh5 {[%emt 0:00:34]} (29... Bg7 $11 {remains equal.}) 30. b5 {[%emt 0:02:26]} axb5 {[%emt 0:00:24]} 31. cxb5 {[%emt 0:00:01]} Na5 {[%emt 0:00:30]} 32. Nxf4 {[%emt 0:06:43]} Qh6 {[%emt 0:00:01]} 33. g3 {[%emt 0:01:54]} Nb3 {[%emt 0:00:46]} (33... Rc8 $11) 34. Bc4 {[%emt 0:01:12]} Nc5 {[%emt 0:00:06]} 35. Bd5 {[%emt 0:01:08]} Rc8 {[%emt 0:01:12]} 36. Nb4 {[%emt 0:00:33]} Qg7 {[%emt 0:00:16]} 37. Rd1 {[%emt 0:00:18]} Nxe4 {[%emt 0:00:09]} 38. Qe3 {[%emt 0:00:42]} Nc5 {[%emt 0:01:00]} 39. Bxb7 {[%emt 0:00:27]} Nxb7 {[%emt 0:00:02]} 40. Nfd5 {[%emt 0:00:17]} Rc4 {[%emt 0:00:46]} 41. Nc6 {[%emt 0:02:33]} Bb2 {[%emt 0:07:44]} (41... Nc5 $142 42. Nde7+ Kh8) 42. Qb3 {[%emt 0:03:25]} Rc5 {[%emt 0:10:20]} 43. Rf2 $18 {[%emt 0:01:31]} Bc1 {[%emt 0:04:49]} 44. Nf6+ {[%emt 0:05:23]} Kh8 {[%emt 0:00:01]} 45. Ne4 {[%emt 0:00:19]} f5 {[%emt 0:07:15]} 46. Nxc5 {[%emt 0:04:56]} Nxc5 {[%emt 0:00:02]} 47. Qf3 {[%emt 0:00:29]} Bh6 {[%emt 0:00:42]} 48. Re1 {[%emt 0:01:52]} Qb7 {[%emt 0:01:39]} 49. Qc3+ {[%emt 0:07:37]} Bg7 {[%emt 0:00:26]} 50. Qc4 {[%emt 0:00:55]} Ne4 {[%emt 0:01:11]} 51. Rxe4 {[%emt 0:00:05]} fxe4 {[%emt 0:00:03]} 52. Rxf8+ {[%emt 0:00:34]} Bxf8 {[%emt 0:00:02]} 53. Qd4+ {[%emt 0:01:51]} Kg8 {[%emt 0:01:30]} 54. a4 {[%emt 0:00:23]} Qf7 {[%emt 0:01:20]} 55. Nb4 {[%emt 0:00:57]} Qf3 {[%emt 0:00:06]} 56. Nc2 {[%emt 0:03:01]} 1/2-1/2

[Event "42nd WALTON Women-ch Bangladesh 2024"]
[Site "Dhaka"]
[Date "2024.05.29"]
[Round "10.5"]
[White "Tabassum Sadia, Shahjahan"]
[Black "Kazi Zarin, Tasnim"]
[Result "0-1"]
[ECO "A85"]
[WhiteElo "1567"]
[BlackElo "1854"]
[Annotator "NA RC"]
[PlyCount "112"]
[EventDate "2024.05.20"]
[EventType "tourn"]
[EventCountry "BAN"]
[SourceTitle "playchess.com"]
[Source "ChessBase"]
[SourceQuality "1"]
[TimeControl "40/5400+30:1800+30"]

1. d4 {[%emt 0:12:45]} e6 {[%emt 0:00:09]} 2. c4 {[%emt 0:00:10]} f5 {[%emt 0:00:26]} 3. Nc3 {[%emt 0:00:59]} Nf6 {[%emt 0:00:19]} 4. d5 {[%emt 0:02:14]} e5 {[%emt 0:04:10]} 5. e4 {[%emt 0:02:09]} fxe4 {[%emt 0:07:39]} 6. Bg5 {[%emt 0:07:29] A85: Dutch Defence: 2 c4 Nf6 3 Nc3.} Bb4 {[%emt 0:01:14]} 7. Nge2 {[%emt 0:00:53]} d6 {[%emt 0:08:08]} 8. Qa4+ {[%emt 0:00:36]} Qd7 {[%emt 0:04:50]} 9. Qxb4 {[%emt 0:00:45]} Qg4 {[%emt 0:00:14]} 10. Bxf6 {[%emt 0:01:45]} gxf6 {[%emt 0:00:02]} 11. O-O-O {[%emt 0:01:38]} f5 {[%emt 0:02:47]} 12. c5 {[%emt 0:02:28]} Na6 {[%emt 0:07:23]} 13. Qb5+ {[%emt 0:00:51]} Ke7 {[%emt 0:00:42]} 14. cxd6+ {[%emt 0:00:23]} cxd6 {[%emt 0:00:08]} 15. Kb1 {[%emt 0:02:56]} Bd7 {[%emt 0:04:26]} 16. Qb3 {[%emt 0:02:46]} Rhc8 {[%emt 0:04:23]} 17. h3 {[%emt 0:00:40]} Qg5 {[%emt 0:01:39]} 18. Qc2 {[%emt 0:04:46]} f4 {[%emt 0:07:08]} 19. Nc1 {[%emt 0:08:40]} (19. Qxe4 Bf5 20. g4 Bxe4+ $17) 19... Nc5 {[%emt 0:09:48]} 20. Qd2 {[%emt 0:01:55]} Qg6 {[%emt 0:04:20]} 21. Ka1 {[%emt 0:00:50]} Bf5 {[%emt 0:02:34]} 22. Rg1 {[%emt 0:03:28]} Bxh3 {[%emt 0:01:11]} 23. g3 {[%emt 0:03:14]} Bf5 {[%emt 0:03:11]} 24. Bb5 {[%emt 0:02:13]} f3 {[%emt 0:02:35]} 25. Rh1 {[%emt 0:00:49]} a6 {[%emt 0:05:31]} 26. Ba4 {[%emt 0:00:57]} b5 {[%emt 0:04:04]} 27. Bc2 {[%emt 0:00:26]} Rc7 {[%emt 0:00:18]} 28. b4 {[%emt 0:09:27]} Nd7 {[%emt 0:01:49]} 29. Rh6 {[%emt 0:00:33]} Qg4 {[%emt 0:01:02]} 30. Re1 {[%emt 0:04:24]} Rac8 {[%emt 0:01:35]} 31. Rh4 {[%emt 0:03:04]} Qg6 {[%emt 0:00:23]} 32. Re3 {[%emt 0:00:35]} Nf6 $2 {[%emt 0:01:00]} (32... Qg5 $1 $11 {and Black stays safe.} 33. Nb3 (33. Nxe4 $2 {loses.} Qxh4 34. gxh4 Rxc2 $19) (33. Bxe4 $2 Rxc3 34. Nb3 Rxe3 $17) 33... Rxc3 34. Rxc3 Qxd2 35. Nxd2 Rxc3 36. Bxe4 Bxe4 37. Nxe4 Rd3 38. Rxh7+ Kd8 39. Rh8+ Kc7) 33. a3 {[%emt 0:08:07]} Ng4 {[%emt 0:01:15]} 34. N1a2 {[%emt 0:03:56]} Nxe3 {[%emt 0:00:34]} 35. Qxe3 {[%emt 0:00:06]} h5 {[%emt 0:04:14]} 36. Bxe4 {[%emt 0:01:11]} Rc4 {[%emt 0:02:01]} 37. Bxf5 {[%emt 0:02:29]} Qxf5 {[%emt 0:00:04]} 38. Rxc4 {[%emt 0:00:41]} Rxc4 {[%emt 0:00:05]} 39. Kb2 {[%emt 0:01:37]} Rg4 {[%emt 0:01:21]} 40. Nc1 {[%emt 0:01:47]} Rxg3 {[%emt 0:01:11]} 41. Qa7+ {[%emt 0:06:02]} (41. fxg3 $2 {loses.} f2 42. Qa7+ (42. g4 $2 hxg4 43. Qa7+ Kf8 $19) 42... Kf8 43. Qxa6 Qd7 (43... f1=B $2 44. Qxd6+ Kg8 45. Qb6 $18) 44. Qa8+ Qe8 $19 (44... Kg7 45. Qc6 $17)) 41... Qd7 $1 {[%emt 0:02:15]} 42. Qxa6 {[%emt 0:04:04]} Rg2 {[%emt 0:02:09]} 43. Qb6 {[%emt 0:00:26]} h4 {[%emt 0:01:02]} 44. Qe3 $2 {[%emt 0:01:30]} (44. Ne4 $11 {and White has nothing to worry.} h3 45. Nd3) 44... h3 {[%emt 0:02:33]} 45. Ne4 $19 {[%emt 0:02:57]} Rg6 {[%emt 0:13:48]} 46. Qxf3 {[%emt 0:00:42]} Qg4 {[%emt 0:00:06]} 47. Qe3 {[%emt 0:14:21]} h2 {[%emt 0:01:43]} 48. Ng3 {[%emt 0:01:47]} Qd4+ {[%emt 0:07:11]} 49. Qxd4 {[%emt 0:00:29]} exd4 {[%emt 0:00:03]} 50. Nce2 {[%emt 0:00:19]} d3 {[%emt 0:00:04]} 51. Nf5+ {[%emt 0:00:21]} Kd7 {[%emt 0:00:05]} 52. Neg3 {[%emt 0:00:10]} Rg5 {[%emt 0:00:05]} 53. Kc3 {[%emt 0:02:45]} Rxf5 {[%emt 0:00:09]} 54. Kxd3 {[%emt 0:00:08]} Rg5 {[%emt 0:00:18]} 55. Nh1 {[%emt 0:02:23]} Rg1 {[%emt 0:00:06]} 56. f4 {[%emt 0:00:05]} Rxh1 {[%emt 0:00:07]} 0-1

[Event "42nd WALTON Women-ch Bangladesh 2024"]
[Site "Dhaka"]
[Date "2024.05.29"]
[Round "10.6"]
[White "Hamid, Rani"]
[Black "Neelava, Choudhury"]
[Result "1-0"]
[ECO "C88"]
[WhiteElo "1863"]
[BlackElo "1778"]
[Annotator "NA RC"]
[PlyCount "74"]
[EventDate "2024.05.20"]
[EventType "tourn"]
[EventCountry "BAN"]
[SourceTitle "playchess.com"]
[Source "ChessBase"]
[SourceQuality "1"]
[TimeControl "40/5400+30:1800+30"]

1. e4 {[%emt 0:00:04]} e5 {[%emt 0:10:10]} 2. Nf3 {[%emt 0:00:06]} Nc6 {[%emt 0:00:09]} 3. Bb5 {[%emt 0:00:07]} a6 {[%emt 0:00:04]} 4. Ba4 {[%emt 0:00:04]} Nf6 {[%emt 0:00:04]} 5. O-O {[%emt 0:00:11]} Be7 {[%emt 0:00:05]} 6. Re1 {[%emt 0:00:08]} b5 {[%emt 0:00:03]} 7. Bb3 {[%emt 0:00:59]} O-O {[%emt 0:00:05]} 8. a4 {[%emt 0:00:16]} Bb7 {[%emt 0:00:05]} 9. d3 {[%emt 0:01:02]} d6 {[%emt 0:01:03]} 10. Nc3 {[%emt 0:00:31]} b4 {[%emt 0:03:28] C88: Closed Ruy Lopez: Anti-Marshall Systems.} 11. Ne2 {[%emt 0:00:41]} d5 {[%emt 0:05:03]} 12. exd5 {[%emt 0:00:28]} Nxd5 {[%emt 0:00:06]} 13. a5 {[%emt 0:01:00]} Kh8 $1 {[%emt 0:03:37]} 14. Ng3 {[%emt 0:00:24]} f6 {[%emt 0:02:39]} (14... Nf4 $1 $11) 15. Bd2 {[%emt 0:10:32]} Bc5 {[%emt 0:05:31]} 16. Nf5 {[%emt 1:21:57]} Nde7 {[%emt 0:07:34]} 17. Ng3 {[%emt 0:00:00]} Nd4 {[%emt 0:02:43]} 18. Nxd4 {[%emt 0:00:00]} Bxd4 {[%emt 0:00:06]} 19. Ra4 {[%emt 0:00:00]} Bc6 {[%emt 0:10:53]} 20. Ra2 {[%emt 0:00:00]} Rb8 {[%emt 0:05:02]} 21. Bc4 {[%emt 0:00:00]} Bd5 {[%emt 0:02:43]} 22. b3 {[%emt 0:00:00]} Bxc4 {[%emt 0:02:56]} 23. dxc4 {[%emt 0:00:00]} Qd7 {[%emt 0:07:33]} 24. Qe2 {[%emt 0:00:00]} Rfd8 {[%emt 0:02:08]} 25. Be3 {[%emt 0:00:00]} Bc3 {[%emt 0:04:16]} 26. Rf1 {[%emt 0:00:00]} Nc6 {[%emt 0:03:13]} 27. Ne4 {[%emt 0:00:00]} Bd4 {[%emt 0:01:42]} 28. g4 {[%emt 0:00:00]} Qe7 {[%emt 0:05:10]} (28... f5 $17 29. gxf5 Qxf5) 29. Ng3 {[%emt 0:00:00]} Rd7 {[%emt 0:03:19]} 30. Nf5 {[%emt 0:00:00]} ({White should play} 30. Qf3 $15 Qe6 31. h3) 30... Qc5 {[%emt 0:01:46]} 31. h3 {[%emt 0:00:00]} Rbd8 {[%emt 0:02:20]} 32. Qf3 $1 {[%emt 0:00:00]} Nxa5 {[%emt 0:02:42]} 33. Rfa1 {[%emt 0:00:00]} (33. Rd1 $14) 33... Nc6 $2 {[%emt 0:07:07]} ({Avoid the trap} 33... Bxe3 $2 34. Rxa5 Bxf2+ 35. Kf1 $18 (35. Qxf2 Rd1+ 36. Kg2 Qc6+ 37. Kg3 R1d2 $18) (35. Kg2 Qf8 $18)) (33... Qc6 $1 $11 34. Qxc6 Nxc6 35. Bxd4 Nxd4) 34. Rxa6 {[%emt 0:00:00]} Ne7 $2 {[%emt 0:00:53]} ({Not} 34... Bxe3 $2 35. Rxc6 Bxf2+ 36. Kg2 $18) (34... Nb8) 35. R1a5 {[%emt 0:00:00]} Bxe3 {[%emt 0:00:58]} 36. Rxc5 {[%emt 0:00:00]} Bxc5 $18 {[%emt 0:00:23]} 37. Ra8 {[%emt 0:00:00]} Rd1+ {[%emt 0:00:00]} 1-0